fUST/lending_fUST_20240327
["ID","MTS","AMOUNT","RATE_DAILY","PERIOD"]
[320616836,1711473042712,-500.0,0.00019178,2]
[320616837,1711473042722,-4932.37,0.00019178,2]
[320616838,1711473042732,-500.0,0.00019178,2]
[320616839,1711473042742,-164.70630417,0.00019178,2]
[320616840,1711473042752,-2474.92,0.00019178,2]
[320616841,1711473042761,-500.0,0.00019178,2]
[320616842,1711473042773,-500.0,0.00019178,2]
[320616843,1711473042783,-12230.12,0.00019178,2]
[320616844,1711473042793,-7376.49,0.00019178,2]
[320616845,1711473042802,-500.0,0.00019178,2]
[320616846,1711473042811,-500.0,0.00019178,2]
[320616847,1711473042820,-2913.84,0.00019178,2]
[320616848,1711473042830,-164.879961,0.00019178,2]
[320616849,1711473042839,-178.5708068,0.00019178,2]
[320616850,1711473042849,-5474.4961519,0.000195,2]
[320616852,1711473042858,-155.49904813,0.000195,2]
[320616854,1711473042868,-218.0729771,0.000195,2]
[320616856,1711473042877,-153.0,0.000195,2]
[320616857,1711473042886,-153.0,0.000195,2]
[320616858,1711473042895,-292.2942816,0.000195,2]
[320616859,1711473042904,-153.0,0.000195,2]
[320616860,1711473042914,-153.0,0.000195,2]
[320616863,1711473042998,-154.6369221,0.000195,2]
[320616864,1711473043008,-153.0,0.000195,2]
[320616865,1711473043017,-153.0,0.000195,2]
[320616866,1711473043026,-153.0,0.000195,2]
[320616867,1711473043035,-153.0,0.000195,2]
[320616868,1711473043043,-312.1305271,0.000195,2]
[320616869,1711473043052,-153.0,0.000195,2]
[320616870,1711473043061,-153.0,0.000195,2]
[320616871,1711473043070,-153.0,0.000195,2]
[320616872,1711473043078,-153.0,0.000195,2]
[320616873,1711473043087,-153.0,0.000195,2]
[320616874,1711473043096,-153.0,0.000195,2]
[320616875,1711473043105,-153.0,0.000195,2]
[320616877,1711473043114,-326.12123614,0.0001976,2]
[320616878,1711473043123,-155.15049598,0.0001976,2]
[320616879,1711473043132,-1245.41541162,0.0001978,2]
[320616880,1711473043142,-178097.24056312,0.00019874,2]
[320616882,1711473043151,-7760.73872435,0.0001988,2]
[320616883,1711473043160,-236.78533027,0.000199,2]
[320616884,1711473043170,-2000.0,0.00019972,2]
[320616885,1711473043179,-684.58648199,0.00019977,2]
[320616887,1711473043188,-166.16090531,0.00019977,2]
[320616889,1711473043198,-5258.14767008,0.0001998,2]
[320616891,1711473043207,-217.14743297,0.00019982,2]
[320616892,1711473043217,-107772.55430618,0.00019986,2]
[320616893,1711473043226,-95736.88298826,0.00019988,2]
[320616894,1711473043239,-220.86854897,0.00019989,2]
[320616895,1711473043248,-217.55431238,0.0001999,2]
[320616896,1711473043258,-63013.46405499,0.0001999,2]
[320616897,1711473043267,-159.578365,0.00019997,2]
[320616898,1711473043276,-157.69465882,0.00019997,2]
[320616899,1711473043286,-155.14894299,0.0002,2]
[320616900,1711473043295,-155.14894299,0.0002,2]
[320616901,1711473043304,-239.56257658,0.0002,2]
[320616902,1711473043313,-155.14584787,0.0002,2]
[320616903,1711473043323,-2538.27827558,0.0002,2]
[320616904,1711473043332,-155.07598723,0.0002,2]
[320616905,1711473043341,-155.08995217,0.0002,2]
[320616906,1711473043350,-465.80138721,0.0002,2]
[320616907,1711473043359,-155.00775039,0.0002,2]
[320616908,1711473043368,-484.0,0.0002,2]
[320616909,1711473043378,-2000.0,0.0002,2]
[320616910,1711473043387,-300.24882924,0.0002,2]
[320616911,1711473043396,-500.0,0.0002,2]
[320616912,1711473043405,-166.52305672,0.0002,2]
[320616913,1711473043415,-780.54671569,0.0002,2]
[320616914,1711473043424,-155.34071835,0.0002,2]
[320616915,1711473043433,-275.8084111,0.0002,2]
[320616916,1711473043443,-963.0,0.0002,2]
[320616917,1711473043453,-2000.0,0.0002,2]
[320616918,1711473043463,-963.0,0.0002,2]
[320616919,1711473043472,-394.0,0.0002,2]
[320616920,1711473043486,-118045.24732691,0.0002,2]
[320616921,1711473043495,-1537.0816904,0.0002,2]
[320616922,1711473043504,-200.0,0.0002,2]
[320616923,1711473043513,-155.23217181,0.00020092,2]
[320616924,1711473043522,-242.98409364,0.00020092,2]
[320616925,1711473043532,-155.41764206,0.00020092,2]
[320616926,1711473043541,-155.64295412,0.00020092,2]
[320616927,1711473043550,-155.35717728,0.00020092,2]
[320616928,1711473043559,-310.12489378,0.00020092,2]
[320616929,1711473043569,-183.50413122,0.00020092,2]
[320616930,1711473043578,-1537.0816904,0.000201,2]
[320616931,1711473043587,-10997.52499195,0.000203,2]
[320616932,1711473043596,-302.79728643,0.00020396,2]
[320616933,1711473043605,-215.94348858,0.00020396,2]
[320616934,1711473043614,-239.04561806,0.00020396,2]
[320616935,1711473043624,-202.97064175,0.00020396,2]
[320616936,1711473043633,-155.20467214,0.00020396,2]
[320616937,1711473043642,-469.0,0.00021,2]
[320616938,1711473043651,-36203.19534117,0.00021,2]
[320616939,1711473043660,-963.0,0.00021,2]
[320616940,1711473043669,-963.0,0.00021,2]
[320616941,1711473043678,-963.0,0.00021,2]
[320616942,1711473043687,-963.0,0.00021,2]
[320616943,1711473043696,-296.0,0.00021,2]
[320616944,1711473043705,-592.0,0.00021,2]
[320616945,1711473043714,-592.0,0.00021,2]
[320616946,1711473043723,-592.0,0.00021,2]
[320616947,1711473043734,-235.01016254,0.00021,2]
[320616948,1711473043742,-1537.0816904,0.00021,2]
[320616949,1711473043752,-1537.0816904,0.000211,2]
[320616950,1711473043761,-2000.0,0.00021328,2]
[320616951,1711473043774,-960.6760564,0.000216,2]
[320616952,1711473043783,-500.0,0.00021917,2]
[320616953,1711473043794,-500.0,0.00021917,2]
[320616954,1711473043803,-500.0,0.00021917,2]
[320616955,1711473043812,-500.0,0.00021917,2]
[320616956,1711473043821,-500.0,0.00021917,2]
[320616957,1711473043830,-579.84465895,0.00021917,2]
[320616958,1711473043839,-500.0,0.00021917,2]
[320616959,1711473043849,-167.38058028,0.00021917,2]
[320616960,1711473043858,-500.0,0.00021917,2]
[320616961,1711473043867,-500.0,0.00021917,2]
[320616962,1711473043877,-500.0,0.00021917,2]
[320616963,1711473043887,-500.0,0.00021917,2]
[320616964,1711473043896,-500.0,0.00021917,2]
[320616965,1711473043905,-501.31037699,0.00021917,2]
[320616966,1711473043915,-500.0,0.00021917,2]
[320616967,1711473043924,-557.48,0.00021917,2]
[320616968,1711473043934,-687.64,0.00021917,2]
[320616969,1711473043943,-500.0,0.00021917,2]
[320616970,1711473043953,-784.44,0.00021917,2]
[320616971,1711473043962,-500.0,0.00021917,2]
[320616972,1711473043971,-500.0,0.00021917,2]
[320616973,1711473043981,-3344.11,0.00021917,2]
[320616974,1711473043990,-500.0,0.00021917,2]
[320616975,1711473043999,-500.0,0.00021917,2]
[320616976,1711473044008,-2373.15,0.00021917,2]
[320616977,1711473044017,-500.0,0.00021917,2]
[320616978,1711473044027,-500.0,0.00021917,2]
[320616979,1711473044036,-500.0,0.00021917,2]
[320616980,1711473044046,-500.0,0.00021917,2]
[320616981,1711473044056,-500.0,0.00021917,2]
[320616982,1711473044065,-500.0,0.00021917,2]
[320616983,1711473044075,-500.0,0.00021917,2]
[320616984,1711473044084,-373.02461886,0.00021917,2]
[320616985,1711473044094,-500.0,0.00021917,2]
[320616986,1711473044103,-1048.72,0.00021917,2]
[320616987,1711473044113,-500.0,0.00021917,2]
[320616988,1711473044122,-500.0,0.00021917,2]
[320616989,1711473044131,-500.0,0.00021917,2]
[320616990,1711473044141,-500.0,0.00021917,2]
[320616991,1711473044151,-500.0,0.00021917,2]
[320616992,1711473044160,-500.0,0.00021917,2]
[320616993,1711473044170,-500.0,0.00021917,2]
[320616994,1711473044180,-500.0,0.00021917,2]
[320616995,1711473044190,-500.0,0.00021917,2]
[320616996,1711473044199,-500.0,0.00021917,2]
[320616997,1711473044209,-500.0,0.00021917,2]
[320616998,1711473044218,-500.0,0.00021917,2]
[320616999,1711473044228,-500.0,0.00021917,2]
[320617000,1711473044241,-990.95,0.00021917,2]
[320617001,1711473044251,-500.0,0.00021917,2]
[320617002,1711473044261,-500.0,0.00021917,2]
[320617003,1711473044271,-500.0,0.00021917,2]
[320617004,1711473044281,-490.88470483,0.00021917,2]
[320617005,1711473044291,-509.69915657,0.00021917,2]
[320617006,1711473044301,-500.0,0.00021917,2]
[320617007,1711473044311,-500.0,0.00021917,2]
[320617008,1711473044393,-500.0,0.00021917,2]
[320617009,1711473044403,-500.0,0.00021917,2]
[320617010,1711473044412,-500.0,0.00021917,2]
[320617011,1711473044422,-500.0,0.00021917,2]
[320617012,1711473044431,-500.0,0.00021917,2]
[320617013,1711473044441,-500.0,0.00021917,2]
[320617014,1711473044451,-500.0,0.00021917,2]
[320617015,1711473044460,-500.0,0.00021917,2]
[320617016,1711473044470,-500.0,0.00021917,2]
[320617017,1711473044479,-500.0,0.00021917,2]
[320617018,1711473044491,-1537.38,0.00021917,2]
[320617019,1711473044501,-500.0,0.00021917,2]
[320617020,1711473044521,-604.54083623,0.00021917,2]
[320617021,1711473044532,-914.53,0.00021917,2]
[320617022,1711473044542,-500.0,0.00021917,2]
[320617023,1711473044552,-500.0,0.00021917,2]
[320617024,1711473044562,-593.54,0.00021917,2]
[320617025,1711473044572,-990.3,0.00021917,2]
[320617026,1711473044583,-438.04942652,0.00021917,2]
[320617027,1711473044593,-1500.18,0.00021917,2]
[320617028,1711473044603,-500.0,0.00021917,2]
[320617029,1711473044614,-524.16,0.00021917,2]
[320617030,1711473044624,-500.0,0.00021917,2]
[320617031,1711473044634,-500.0,0.00021917,2]
[320617032,1711473044643,-500.0,0.00021917,2]
[320617033,1711473044653,-500.0,0.00021917,2]
[320617034,1711473044663,-500.0,0.00021917,2]
[320617035,1711473044673,-500.0,0.00021917,2]
[320617036,1711473044682,-151.89794101,0.00021917,2]
[320617037,1711473044693,-500.0,0.00021917,2]
[320617038,1711473044702,-500.0,0.00021917,2]
[320617039,1711473044712,-590.33,0.00021917,2]
[320617040,1711473044722,-645.49,0.00021917,2]
[320617041,1711473044733,-500.0,0.00021917,2]
[320617042,1711473044745,-873.02,0.00021917,2]
[320617043,1711473044757,-500.0,0.00021917,2]
[320617044,1711473044768,-500.0,0.00021917,2]
[320617045,1711473044778,-500.0,0.00021917,2]
[320617046,1711473044790,-500.0,0.00021917,2]
[320617047,1711473044800,-503.64,0.00021917,2]
[320617048,1711473044810,-663.41,0.00021917,2]
[320617049,1711473044821,-500.0,0.00021917,2]
[320617050,1711473044833,-500.0,0.00021917,2]
[320617051,1711473044844,-500.0,0.00021917,2]
[320617052,1711473044854,-500.0,0.00021917,2]
[320617053,1711473044864,-500.0,0.00021917,2]
[320617054,1711473044874,-530.56,0.00021917,2]
[320617055,1711473044884,-500.0,0.00021917,2]
[320617056,1711473044894,-500.0,0.00021917,2]
[320617057,1711473044906,-500.0,0.00021917,2]
[320617058,1711473044917,-500.0,0.00021917,2]
[320617059,1711473044928,-500.0,0.00021917,2]
[320617060,1711473044938,-500.0,0.00021917,2]
[320617061,1711473044949,-500.0,0.00021917,2]
[320617062,1711473044958,-500.0,0.00021917,2]
[320617063,1711473044969,-454.52514159,0.00021917,2]
[320617064,1711473044979,-416.84459065,0.00021917,2]
[320617065,1711473044991,-500.0,0.00021917,2]
[320617066,1711473045001,-500.0,0.00021917,2]
[320617067,1711473045011,-500.0,0.00021917,2]
[320617068,1711473045020,-500.0,0.00021917,2]
[320617069,1711473045030,-500.0,0.00021917,2]
[320617070,1711473045040,-818.36,0.00021917,2]
[320617071,1711473045049,-285.69417683,0.00021917,2]
[320617072,1711473045065,-500.0,0.00021917,2]
[320617073,1711473045086,-500.0,0.00021917,2]
[320617074,1711473045105,-500.0,0.00021917,2]
[320617075,1711473045121,-500.0,0.00021917,2]
[320617076,1711473045139,-504.40342207,0.00021917,2]
[320617077,1711473045157,-500.0,0.00021917,2]
[320617078,1711473045171,-732.44,0.00021917,2]
[320617079,1711473045187,-500.0,0.00021917,2]
[320617080,1711473045205,-500.0,0.00021917,2]
[320617081,1711473045222,-526.86584472,0.00021917,2]
[320617082,1711473045235,-728.7,0.00021917,2]
[320617083,1711473045252,-500.0,0.00021917,2]
[320617084,1711473045269,-500.0,0.00021917,2]
[320617085,1711473045285,-3480.34,0.00021917,2]
[320617086,1711473045301,-639.38,0.00021917,2]
[320617087,1711473045319,-500.0,0.00021917,2]
[320617088,1711473045335,-500.0,0.00021917,2]
[320617089,1711473045348,-793.56,0.00021917,2]
[320617090,1711473045360,-500.0,0.00021917,2]
[320617091,1711473045375,-639.32,0.00021917,2]
[320617092,1711473045389,-500.0,0.00021917,2]
[320617094,1711473045403,-500.0,0.00021917,2]
[320617096,1711473045415,-500.0,0.00021917,2]
[320617097,1711473045429,-538.77,0.00021917,2]
[320617098,1711473045444,-500.0,0.00021917,2]
[320617099,1711473045459,-500.0,0.00021917,2]
[320617100,1711473045473,-500.0,0.00021917,2]
[320617101,1711473045488,-500.0,0.00021917,2]
[320617102,1711473045502,-500.0,0.00021917,2]
[320617103,1711473045516,-457.46331549,0.00021917,2]
[320617104,1711473045530,-670.68,0.00021917,2]
[320617105,1711473045543,-500.0,0.00021917,2]
[320617106,1711473045557,-500.0,0.00021917,2]
[320617107,1711473045571,-213.44946187,0.00021917,2]
[320617108,1711473045584,-692.54,0.00021917,2]
[320617109,1711473045597,-500.0,0.00021917,2]
[320617110,1711473045611,-500.0,0.00021917,2]
[320617111,1711473045624,-500.0,0.00021917,2]
[320617112,1711473045637,-500.0,0.00021917,2]
[320617113,1711473045650,-1029.27,0.00021917,2]
[320617116,1711473045664,-500.0,0.00021917,2]
[320617119,1711473045678,-500.0,0.00021917,2]
[320617121,1711473045690,-500.0,0.00021917,2]
[320617124,1711473045704,-645.28,0.00021917,2]
[320617126,1711473045717,-604.08,0.00021917,2]
[320617128,1711473045729,-500.0,0.00021917,2]
[320617129,1711473045743,-500.0,0.00021917,2]
[320617130,1711473045759,-500.0,0.00021917,2]
[320617131,1711473045772,-800.06,0.00021917,2]
[320617132,1711473045786,-763.11,0.00021917,2]
[320617133,1711473045798,-500.0,0.00021917,2]
[320617134,1711473045811,-500.0,0.00021917,2]
[320617135,1711473045825,-500.0,0.00021917,2]
[320617136,1711473045837,-820.65,0.00021917,2]
[320617137,1711473045850,-500.0,0.00021917,2]
[320617138,1711473045863,-1122.63,0.00021917,2]
[320617139,1711473045876,-500.0,0.00021917,2]
[320617140,1711473045890,-962.53,0.00021917,2]
[320617141,1711473045904,-500.0,0.00021917,2]
[320617143,1711473045917,-500.0,0.00021917,2]
[320617144,1711473045930,-500.0,0.00021917,2]
[320617145,1711473045944,-920.26,0.00021917,2]
[320617146,1711473045957,-500.0,0.00021917,2]
[320617147,1711473045966,-500.0,0.00021917,2]
[320617152,1711473045976,-500.0,0.00021917,2]
[320617153,1711473046115,-500.0,0.00021917,2]
[320617154,1711473046125,-1192.24,0.00021917,2]
[320617155,1711473046134,-500.0,0.00021917,2]
[320617156,1711473046144,-500.0,0.00021917,2]
[320617157,1711473046153,-586.27,0.00021917,2]
[320617158,1711473046162,-643.26,0.00021917,2]
[320617159,1711473046171,-500.0,0.00021917,2]
[320617160,1711473046180,-500.0,0.00021917,2]
[320617161,1711473046189,-500.0,0.00021917,2]
[320617162,1711473046198,-628.01,0.00021917,2]
[320617163,1711473046207,-655.15,0.00021917,2]
[320617164,1711473046216,-500.0,0.00021917,2]
[320617165,1711473046226,-500.0,0.00021917,2]
[320617167,1711473046237,-882.02,0.00021917,2]
[320617169,1711473046246,-500.0,0.00021917,2]
[320617170,1711473046255,-500.0,0.00021917,2]
[320617171,1711473046265,-903.33,0.00021917,2]
[320617172,1711473046274,-500.0,0.00021917,2]
[320617173,1711473046283,-500.0,0.00021917,2]
[320617174,1711473046292,-328.69031783,0.00021917,2]
[320617175,1711473046301,-755.4,0.00021917,2]
[320617176,1711473046310,-503.61,0.00021917,2]
[320617177,1711473046319,-759.98,0.00021917,2]
[320617178,1711473046329,-500.0,0.00021917,2]
[320617179,1711473046337,-500.0,0.00021917,2]
[320617180,1711473046347,-500.0,0.00021917,2]
[320617181,1711473046356,-787.45,0.00021917,2]
[320617182,1711473046365,-500.0,0.00021917,2]
[320617183,1711473046374,-500.0,0.00021917,2]
[320617184,1711473046383,-1306.87,0.00021917,2]
[320617185,1711473046392,-1610.23,0.00021917,2]
[320617186,1711473046401,-500.0,0.00021917,2]
[320617187,1711473046411,-622.39,0.00021917,2]
[320617188,1711473046420,-973.27,0.00021917,2]
[320617189,1711473046429,-500.0,0.00021917,2]
[320617190,1711473046440,-1218.38,0.00021917,2]
[320617191,1711473046449,-500.0,0.00021917,2]
[320617192,1711473046458,-500.0,0.00021917,2]
[320617193,1711473046467,-500.0,0.00021917,2]
[320617194,1711473046477,-500.0,0.00021917,2]
[320617195,1711473046487,-2845.78,0.00021917,2]
[320617196,1711473046497,-1599.48,0.00021917,2]
[320617197,1711473046506,-500.0,0.00021917,2]
[320617198,1711473046515,-500.0,0.00021917,2]
[320617199,1711473046525,-500.0,0.00021917,2]
[320617200,1711473046534,-500.0,0.00021917,2]
[320617201,1711473046543,-2570.22,0.00021917,2]
[320617202,1711473046553,-1812.09,0.00021917,2]
[320617203,1711473046562,-2805.29,0.00021917,2]
[320617204,1711473046571,-500.0,0.00021917,2]
[320617205,1711473046580,-645.13,0.00021917,2]
[320617206,1711473046589,-155.04396045,0.00021917,2]
[320617207,1711473046599,-11367.34,0.00021917,2]
[320617208,1711473046608,-500.0,0.00021917,2]
[320617209,1711473046617,-395.91513467,0.00021917,2]
[320617210,1711473046627,-500.0,0.00021917,2]
[320617211,1711473046636,-3181.16,0.00021917,2]
[320617212,1711473046645,-794.75,0.00021917,2]
[320617213,1711473046654,-500.0,0.00021917,2]
[320617214,1711473046663,-500.0,0.00021917,2]
[320617215,1711473046673,-656.94,0.00021917,2]
[320617216,1711473046683,-3291.22,0.00021917,2]
[320617217,1711473046692,-634.19,0.00021917,2]
[320617218,1711473046703,-831.88,0.00021917,2]
[320617219,1711473046713,-3557.54,0.00021917,2]
[320617220,1711473046724,-500.0,0.00021917,2]
[320617221,1711473046737,-860.12,0.00021917,2]
[320617222,1711473046750,-500.0,0.00021917,2]
[320617223,1711473046760,-500.0,0.00021917,2]
[320617224,1711473046774,-678.12,0.00021917,2]
[320617225,1711473046785,-432.95785474,0.00021917,2]
[320617226,1711473046795,-500.0,0.00021917,2]
[320617227,1711473046806,-500.0,0.00021917,2]
[320617228,1711473046815,-500.0,0.00021917,2]
[320617229,1711473046825,-1313.35,0.00021917,2]
[320617230,1711473046836,-500.89527502,0.00021917,2]
[320617231,1711473046847,-500.0,0.00021917,2]
[320617232,1711473046858,-500.0,0.00021917,2]
[320617233,1711473046869,-500.92523654,0.00021917,2]
[320617234,1711473046879,-1423.64,0.00021917,2]
[320617235,1711473046889,-500.0,0.00021917,2]
[320617236,1711473046900,-38520.33,0.00021917,2]
[320617237,1711473046910,-2458.21,0.00021917,2]
[320617238,1711473046919,-513.06,0.00021917,2]
[320617239,1711473046929,-588.46388389,0.00021917,2]
[320617240,1711473046938,-500.93286255,0.00021917,2]
[320617241,1711473046948,-874.99,0.00021917,2]
[320617242,1711473046957,-874.99,0.00021917,2]
[320617243,1711473046967,-596.94,0.00021917,2]
[320617244,1711473046976,-672.12,0.00021917,2]
[320617245,1711473046990,-500.0,0.00021917,2]
[320617246,1711473047000,-500.0,0.00021917,2]
[320617247,1711473047009,-500.0,0.00021917,2]
[320617248,1711473047019,-5892.51,0.00021917,2]
[320617249,1711473047028,-7132.81,0.00021917,2]
[320617250,1711473047038,-8808.35,0.00021917,2]
[320617251,1711473047048,-631.02932262,0.00021917,2]
[320617252,1711473047057,-500.0,0.00021917,2]
[320617253,1711473047066,-3037.24,0.00021917,2]
[320617254,1711473047075,-1038.72,0.00021917,2]
[320617255,1711473047085,-500.0,0.00021917,2]
[320617256,1711473047094,-970.92,0.00021917,2]
[320617257,1711473047103,-501.14156341,0.00021917,2]
[320617258,1711473047112,-500.0,0.00021917,2]
[320617259,1711473047121,-791.09,0.00021917,2]
[320617260,1711473047131,-501.2036792,0.00021917,2]
[320617261,1711473047140,-500.0,0.00021917,2]
[320617262,1711473047149,-500.0,0.00021917,2]
[320617263,1711473047159,-500.0,0.00021917,2]
[320617264,1711473047168,-802.43,0.00021917,2]
[320617265,1711473047178,-500.0,0.00021917,2]
[320617266,1711473047188,-36984.03,0.00021917,2]
[320617267,1711473047197,-500.0,0.00021917,2]
[320617268,1711473047206,-500.90326097,0.00021917,2]
[320617269,1711473047216,-4932.37,0.00021917,2]
[320617270,1711473047227,-500.0,0.00021917,2]
[320617271,1711473047240,-2474.92,0.00021917,2]
[320617272,1711473047249,-500.0,0.00021917,2]
[320617273,1711473047258,-500.0,0.00021917,2]
[320617274,1711473047267,-12230.12,0.00021917,2]
[320617275,1711473047276,-7376.49,0.00021917,2]
[320617276,1711473047285,-500.0,0.00021917,2]
[320617277,1711473047294,-500.0,0.00021917,2]
[320617278,1711473047304,-2913.84,0.00021917,2]
[320617279,1711473047313,-15583.7846921,0.00021918,2]
[320617280,1711473047322,-166.666666,0.00021918,2]
[320617281,1711473047332,-157.74893899,0.00022,2]
[320617282,1711473047341,-251.91161066,0.00022,2]
[320617283,1711473047351,-180072.0165324,0.00022,4]
[320617284,1711473047590,-500.31875358,0.00019178,2]
[320617285,1711473047913,-89.68124642,0.00019178,2]
[320617286,1711473047923,-151.0,0.00019178,2]
[320617287,1711473047932,-11278.74685624,0.00022,4]
[320617288,1711473047944,-12517.31655871,0.00022,4]
[320617289,1711473047955,-4291.67724412,0.00022,4]
[320617290,1711473047969,-3593.78192564,0.00022,4]
[320617291,1711473048191,-151.0,0.00019178,2]
[320617292,1711473048202,-151.0,0.00019178,2]
[320617293,1711473048211,-151.0,0.00019178,2]
[320617294,1711473048220,-151.0,0.00019178,2]
[320617295,1711473048230,-1361.03,0.00022,4]
[320617483,1711474238137,-154.9845,0.00019,2]
[320617485,1711474238148,-1002.62544318,0.00019175,2]
[320617487,1711474238158,-1474.4277627,0.00019175,2]
[320617490,1711474238170,-135.92506225,0.00019175,2]
[320617492,1711474238179,-1209.03808347,0.00019175,2]
[320617616,1711474240153,-10158.98532592,0.00019175,2]
[320617618,1711474240167,-5683.69728538,0.00019175,2]
[320618271,1711474246358,-4118.45652162,0.00019175,2]
[320618273,1711474246368,-20459.95401196,0.00019176,2]
[320620953,1711474513810,151.02869545,0.00019282,30]
[320620954,1711474513882,151.02869545,0.00018896,120]
[320620957,1711474753866,1276.9882975,0.00018788,2]
[320620958,1711474766268,250.0,0.00018012,2]
[320620959,1711474784034,604.745314,0.00018788,2]
[320620960,1711474801871,503.95442833,0.00018788,2]
[320620961,1711474821879,262.56025716,0.00018788,2]
[320620962,1711474841917,262.56025716,0.00018788,2]
[320620963,1711474861889,262.56025716,0.00018788,2]
[320620964,1711474862813,822.7643002,0.00018788,2]
[320620965,1711474881899,262.56025716,0.00018788,2]
[320620968,1711474898740,10868.79387592,0.00018788,2]
[320620969,1711474903893,262.56025716,0.00018788,2]
[320620970,1711474910829,204.86050653,0.00018787,2]
[320620971,1711474925913,262.56025716,0.00018788,2]
[320620972,1711474945899,262.56025716,0.00018787,2]
[320620973,1711474947587,155.11306953,0.00018787,2]
[320620974,1711474953957,151.03020604,0.00019407,30]
[320620975,1711474954029,151.03020604,0.00019018,120]
[320620976,1711474967891,262.56025716,0.00018787,2]
[320620977,1711474977702,193.07694713,0.00018787,2]
[320620978,1711474983927,262.56025716,0.00018787,2]
[320620979,1711475001896,262.56025716,0.00018787,2]
[320620980,1711475017906,311.9846247,0.00018787,2]
[320620992,1711475279765,196.7732428,0.00018057,2]
[320620993,1711475310402,151.0362487,0.0001954,30]
[320620994,1711475310464,151.0362487,0.00019149,120]
[320620995,1711475356118,250.0,0.00018057,2]
[320620997,1711475393362,317.390948,0.00018057,2]
[320620998,1711475400095,417.95187376,0.00018057,2]
[320621006,1711475432249,-11112.6048004,0.00018057,2]
[320621009,1711475432309,-941.15113558,0.00018057,2]
[320621087,1711475440277,-467.0233524,0.00017987,2]
[320621088,1711475440294,-1957.2415856,0.00018056,2]
[320621089,1711475440304,-5227.64538386,0.00018057,2]
[320621090,1711475440523,-4858.95587718,0.00018057,2]
[320621475,1711475446541,-1086.13583216,0.00018057,2]
[320622249,1711475764978,151.0362487,0.00019449,30]
[320622250,1711475765048,151.0362487,0.0001906,120]
[320622265,1711476143537,5000.0,0.00025833,120]
[320622266,1711476195521,151.03775944,0.00019585,30]
[320622267,1711476195604,151.03775944,0.00019194,120]
[320622268,1711476285486,5745.0943654,0.00017857,2]
[320622275,1711476399146,2809.84157057,0.00017678,2]
[320622283,1711476448570,10445.06406403,0.00017759,2]
[320622284,1711476448596,5630.19247809,0.00017759,2]
[320622285,1711476448623,5630.19247809,0.00017759,2]
[320622286,1711476448648,3194.55097979,0.00017759,2]
[320622287,1711476486512,4221.51767113,0.00017759,2]
[320622288,1711476486538,8301.62743981,0.00017759,2]
[320622291,1711476516157,262.46257315,0.00017759,2]
[320622314,1711476534091,262.46257315,0.00017759,2]
[320622315,1711476534495,3173.44741389,0.00017759,2]
[320622316,1711476534693,8158.11421088,0.00017759,2]
[320622317,1711476534731,4652.90311806,0.00017759,2]
[320622339,1711476558122,262.46257315,0.00017759,2]
[320622342,1711476576092,205.86962525,0.00017759,2]
[320622580,1711476643691,-1610.84561279,0.00017934,2]
[320622583,1711476643701,-560.16902881,0.00017935,2]